[Event "Schack-SM 2022: Mastarklassen"]
[Site "Fyrishov, Idrottsgatan 2, Uppsala, Sweden"]
[Date "2022.07.09"]
[Round "8.4"]
[White "Eriksson, Dan"]
[Black "Carlstrom, Niklas"]
[Result "1-0"]
[TimeControl "90 minutes for 40 moves + 30 minutes for the rest of the game + 30 seconds per move from move one."]
[WhiteFideId "1710095"]
[BlackFideId "1704648"]
[WhiteElo "2246"]
[BlackElo "2125"]

1. e4 {[%clk 01:30:26]} {[%emt 00:00:33]} e5 {[%clk 01:30:42]} {[%emt
00:00:17]} 2. Nf3 {[%clk 01:30:52]} {[%emt 00:00:06]} Nc6 {[%clk 01:30:59]}
{[%emt 00:00:12]} 3. d4 {[%clk 01:31:07]} {[%emt 00:00:15]} exd4 {[%clk
01:31:20]} {[%emt 00:00:09]} 4. Nxd4 {[%clk 01:31:32]} {[%emt 00:00:05]} Qf6
{[%clk 01:31:02]} {[%emt 00:00:46]} 5. Be3 {[%clk 01:30:12]} {[%emt 00:01:51]}
Bc5 {[%clk 01:30:44]} {[%emt 00:00:48]} 6. c3 {[%clk 01:30:35]} {[%emt
00:00:07]} Qg6 {[%clk 01:30:33]} {[%emt 00:00:40]} 7. Qf3 {[%clk 01:25:29]}
{[%emt 00:05:36]} Nf6 {[%clk 01:27:42]} {[%emt 00:03:20]} 8. Nb5 {[%clk
01:05:25]} {[%emt 00:20:35]} Bxe3 {[%clk 01:25:24]} {[%emt 00:02:48]} 9. Qxe3
{[%clk 01:05:47]} {[%emt 00:00:08]} Kd8 {[%clk 01:24:27]} {[%emt 00:01:26]} 10.
f3 {[%clk 01:02:21]} {[%emt 00:03:58]} Re8 {[%clk 01:22:57]} {[%emt 00:01:59]}
11. Nd2 {[%clk 01:00:55]} {[%emt 00:01:56]} Nd5 {[%clk 01:20:08]} {[%emt
00:03:18]} 12. Qc5 {[%clk 00:50:07]} {[%emt 00:11:19]} Nb6 {[%clk 01:18:38]}
{[%emt 00:02:00]} 13. O-O-O {[%clk 00:44:15]} {[%emt 00:06:22]} a6 {[%clk
01:05:58]} {[%emt 00:13:10]} 14. Nd4 {[%clk 00:42:29]} {[%emt 00:02:16]} Nxd4
{[%clk 01:00:56]} {[%emt 00:05:32]} 15. Qxd4 {[%clk 00:38:38]} {[%emt
00:04:21]} d6 {[%clk 00:59:29]} {[%emt 00:01:57]} 16. Bd3 {[%clk 00:32:36]}
{[%emt 00:06:33]} Qg5 {[%clk 00:44:53]} {[%emt 00:15:05]} 17. e5 {[%clk
00:23:34]} {[%emt 00:09:34]} Qxe5 {[%clk 00:40:36]} {[%emt 00:04:46]} 18. Qh4+
{[%clk 00:23:58]} {[%emt 00:00:06]} g5 {[%clk 00:39:13]} {[%emt 00:01:53]} 19.
Qxh7 {[%clk 00:23:33]} {[%emt 00:00:56]} Be6 {[%clk 00:36:08]} {[%emt
00:03:33]} 20. Rhe1 {[%clk 00:20:31]} {[%emt 00:03:34]} Qa5 {[%clk 00:32:24]}
{[%emt 00:04:14]} 21. a3 {[%clk 00:16:59]} {[%emt 00:04:03]} Na4 {[%clk
00:14:39]} {[%emt 00:18:14]} 22. Qg7 {[%clk 00:10:42]} {[%emt 00:06:47]} Qb6
{[%clk 00:09:16]} {[%emt 00:05:53]} 23. c4 {[%clk 00:10:41]} {[%emt 00:00:31]}
Kc8 {[%clk 00:06:00]} {[%emt 00:03:45]} 24. Bc2 {[%clk 00:09:20]} {[%emt
00:01:52]} Qa5 {[%clk 00:03:10]} {[%emt 00:03:20]} 25. b4 {[%clk 00:07:10]}
{[%emt 00:02:40]} Qb6 {[%clk 00:03:00]} {[%emt 00:00:40]} 26. Bxa4 {[%clk
00:07:31]} {[%emt 00:00:09]} Rd8 {[%clk 00:02:59]} {[%emt 00:00:30]} 27. Qc3
{[%clk 00:06:00]} {[%emt 00:02:01]} a5 {[%clk 00:03:03]} {[%emt 00:00:27]} 28.
b5 {[%clk 00:06:17]} {[%emt 00:00:13]} Qf2 {[%clk 00:03:14]} {[%emt 00:00:18]}
29. Ne4 {[%clk 00:05:00]} {[%emt 00:01:48]} Qxg2 {[%clk 00:03:14]} {[%emt
00:00:30]} 30. Rd2 {[%clk 00:05:09]} {[%emt 00:00:21]} 1-0

[Event "Schack-SM 2022: Mastarklassen"]
[Site "Fyrishov, Idrottsgatan 2, Uppsala, Sweden"]
[Date "2022.07.09"]
[Round "8.5"]
[White "Jogstad, Daniel"]
[Black "Johansson, Thomas"]
[Result "0-1"]
[TimeControl "90 minutes for 40 moves + 30 minutes for the rest of the game + 30 seconds per move from move one."]
[WhiteTitle "CM"]
[WhiteFideId "1718959"]
[BlackFideId "1708244"]
[WhiteElo "2057"]
[BlackElo "2231"]

1. e4 {[%clk 01:30:56]} {[%emt 00:00:02]} c6 {[%clk 01:29:10]} {[%emt
00:01:50]} 2. d4 {[%clk 01:31:10]} {[%emt 00:00:16]} d5 {[%clk 01:29:25]}
{[%emt 00:00:16]} 3. exd5 {[%clk 01:31:32]} {[%emt 00:00:08]} cxd5 {[%clk
01:29:50]} {[%emt 00:00:05]} 4. Bd3 {[%clk 01:31:55]} {[%emt 00:00:07]} Nc6
{[%clk 01:30:14]} {[%emt 00:00:06]} 5. c3 {[%clk 01:32:20]} {[%emt 00:00:06]}
Qc7 {[%clk 01:30:39]} {[%emt 00:00:05]} 6. h3 {[%clk 01:32:35]} {[%emt
00:00:15]} Nf6 {[%clk 01:30:20]} {[%emt 00:00:49]} 7. Nf3 {[%clk 01:32:46]}
{[%emt 00:00:19]} g6 {[%clk 01:30:38]} {[%emt 00:00:11]} 8. Qc2 {[%clk
01:33:01]} {[%emt 00:00:15]} Bg7 {[%clk 01:31:02]} {[%emt 00:00:06]} 9. O-O
{[%clk 01:33:19]} {[%emt 00:00:13]} O-O {[%clk 01:31:26]} {[%emt 00:00:06]} 10.
Re1 {[%clk 01:33:06]} {[%emt 00:00:43]} Nd7 {[%clk 01:26:10]} {[%emt 00:05:47]}
11. Be3 {[%clk 01:20:47]} {[%emt 00:12:49]} e5 {[%clk 01:26:23]} {[%emt
00:00:16]} 12. dxe5 {[%clk 01:21:14]} {[%emt 00:00:04]} Ndxe5 {[%clk 01:26:47]}
{[%emt 00:00:06]} 13. Nxe5 {[%clk 01:20:32]} {[%emt 00:01:11]} Nxe5 {[%clk
01:27:10]} {[%emt 00:00:07]} 14. Bd4 {[%clk 01:20:43]} {[%emt 00:00:19]} Bd7
{[%clk 01:26:13]} {[%emt 00:01:27]} 15. Na3 {[%clk 01:08:26]} {[%emt 00:12:47]}
a6 {[%clk 01:23:09]} {[%emt 00:03:35]} 16. Bf1 {[%clk 00:57:40]} {[%emt
00:11:16]} Rfe8 {[%clk 01:09:34]} {[%emt 00:14:05]} 17. Qd2 {[%clk 00:57:16]}
{[%emt 00:00:53]} Rac8 {[%clk 00:44:38]} {[%emt 00:25:27]} 18. Rad1 {[%clk
00:45:09]} {[%emt 00:12:37]} Be6 {[%clk 00:41:17]} {[%emt 00:03:51]} 19. Qg5
{[%clk 00:33:58]} {[%emt 00:11:41]} Nc6 {[%clk 00:20:56]} {[%emt 00:20:51]} 20.
Nc2 {[%clk 00:34:20]} {[%emt 00:00:08]} Nxd4 {[%clk 00:18:54]} {[%emt
00:02:32]} 21. Nxd4 {[%clk 00:34:44]} {[%emt 00:00:06]} Qb6 {[%clk 00:19:07]}
{[%emt 00:00:17]} 22. Nxe6 {[%clk 00:33:45]} {[%emt 00:01:29]} fxe6 {[%clk
00:16:09]} {[%emt 00:03:28]} 23. Rd2 {[%clk 00:23:18]} {[%emt 00:10:55]} Qd6
{[%clk 00:12:48]} {[%emt 00:03:52]} 24. h4 {[%clk 00:20:54]} {[%emt 00:02:54]}
Qf8 {[%clk 00:11:13]} {[%emt 00:02:05]} 25. Rde2 {[%clk 00:15:39]} {[%emt
00:05:44]} e5 {[%clk 00:09:51]} {[%emt 00:01:54]} 26. h5 {[%clk 00:10:11]}
{[%emt 00:05:58]} Qf5 {[%clk 00:06:22]} {[%emt 00:03:59]} 27. Qxf5 {[%clk
00:10:36]} {[%emt 00:00:05]} gxf5 {[%clk 00:06:48]} {[%emt 00:00:04]} 28. f4
{[%clk 00:11:03]} {[%emt 00:00:04]} e4 {[%clk 00:07:08]} {[%emt 00:00:10]} 29.
Rd2 {[%clk 00:11:24]} {[%emt 00:00:08]} Red8 {[%clk 00:06:42]} {[%emt
00:00:57]} 30. Red1 {[%clk 00:11:17]} {[%emt 00:00:37]} d4 {[%clk 00:06:50]}
{[%emt 00:00:23]} 31. cxd4 {[%clk 00:11:18]} {[%emt 00:00:29]} Rd5 {[%clk
00:07:11]} {[%emt 00:00:08]} 32. Kf2 {[%clk 00:10:57]} {[%emt 00:00:51]} Kf8
{[%clk 00:06:56]} {[%emt 00:00:45]} 33. Ke3 {[%clk 00:09:52]} {[%emt 00:01:35]}
Ke7 {[%clk 00:07:13]} {[%emt 00:00:13]} 34. g4 {[%clk 00:09:32]} {[%emt
00:00:50]} fxg4 {[%clk 00:07:34]} {[%emt 00:00:09]} 35. Be2 {[%clk 00:09:51]}
{[%emt 00:00:11]} Kd6 {[%clk 00:05:47]} {[%emt 00:02:17]} 36. Bxg4 {[%clk
00:09:25]} {[%emt 00:00:57]} Rf8 {[%clk 00:05:42]} {[%emt 00:00:35]} 37. Rc2
{[%clk 00:05:16]} {[%emt 00:04:39]} Bh6 {[%clk 00:05:59]} {[%emt 00:00:13]} 38.
Rf1 {[%clk 00:05:40]} {[%emt 00:00:06]} Rg8 {[%clk 00:06:09]} {[%emt 00:00:20]}
39. Bc8 {[%clk 00:02:50]} {[%emt 00:03:20]} Rg7 {[%clk 00:04:50]} {[%emt
00:01:49]} 40. Kxe4 {[%clk 00:00:57]} {[%emt 00:02:23]} Rxh5 {[%clk 00:05:04]}
{[%emt 00:00:15]} 41. Rc5 {[%clk 00:20:04]} {[%emt 00:11:24]} Re7+ {[%clk
00:28:23]} {[%emt 00:07:11]} 42. Re5 {[%clk 00:20:06]} {[%emt 00:00:29]} Rh2
{[%clk 00:28:49]} {[%emt 00:00:04]} 43. Rf3 {[%clk 00:15:17]} {[%emt 00:05:19]}
Rxb2 {[%clk 00:26:29]} {[%emt 00:02:50]} 44. Rb3 {[%clk 00:15:34]} {[%emt
00:00:12]} Rxb3 {[%clk 00:26:24]} {[%emt 00:00:36]} 45. axb3 {[%clk 00:15:21]}
{[%emt 00:00:43]} Bf8 {[%clk 00:20:14]} {[%emt 00:06:40]} 46. f5 {[%clk
00:14:09]} {[%emt 00:01:40]} Bg7 {[%clk 00:20:31]} {[%emt 00:00:14]} 47. Be6
{[%clk 00:05:02]} {[%emt 00:09:38]} b6 {[%clk 00:18:31]} {[%emt 00:02:31]} 48.
Rd5+ {[%clk 00:05:01]} {[%emt 00:00:30]} Kc7 {[%clk 00:18:15]} {[%emt
00:00:46]} 49. Kf4 {[%clk 00:04:11]} {[%emt 00:01:20]} Bf6 {[%clk 00:18:20]}
{[%emt 00:00:25]} 50. Kg4 {[%clk 00:04:30]} {[%emt 00:00:11]} Kc6 {[%clk
00:18:03]} {[%emt 00:00:47]} 51. Re5 {[%clk 00:03:08]} {[%emt 00:01:53]} Bxe5
{[%clk 00:18:06]} {[%emt 00:00:27]} 52. dxe5 {[%clk 00:03:20]} {[%emt
00:00:17]} Rxe6 {[%clk 00:18:24]} {[%emt 00:00:12]} 53. fxe6 {[%clk 00:03:38]}
{[%emt 00:00:12]} Kc7 {[%clk 00:18:44]} {[%emt 00:00:10]} 0-1

[Event "Schack-SM 2022: Mastarklassen"]
[Site "Fyrishov, Idrottsgatan 2, Uppsala, Sweden"]
[Date "2022.07.09"]
[Round "8.6"]
[White "Lundberg, David"]
[Black "Tiger-Norqvist, Axel"]
[Result "0-1"]
[TimeControl "90 minutes for 40 moves + 30 minutes for the rest of the game + 30 seconds per move from move one."]
[WhiteFideId "1707051"]
[BlackFideId "1716816"]
[WhiteElo "2219"]
[BlackElo "2239"]

1. d4 {[%clk 01:25:37]} {[%emt 00:05:22]} Nf6 {[%clk 01:30:48]} {[%emt
00:00:13]} 2. c4 {[%clk 01:26:00]} {[%emt 00:00:06]} g6 {[%clk 01:31:13]}
{[%emt 00:00:05]} 3. Nc3 {[%clk 01:26:23]} {[%emt 00:00:06]} Bg7 {[%clk
01:31:38]} {[%emt 00:00:06]} 4. e4 {[%clk 01:26:47]} {[%emt 00:00:06]} O-O
{[%clk 01:32:02]} {[%emt 00:00:07]} 5. f3 {[%clk 01:26:46]} {[%emt 00:00:30]}
d6 {[%clk 01:32:23]} {[%emt 00:00:09]} 6. Be3 {[%clk 01:27:08]} {[%emt
00:00:08]} c5 {[%clk 01:32:46]} {[%emt 00:00:07]} 7. Nge2 {[%clk 01:27:32]}
{[%emt 00:00:06]} Nc6 {[%clk 01:33:05]} {[%emt 00:00:11]} 8. d5 {[%clk
01:27:51]} {[%emt 00:00:11]} Ne5 {[%clk 01:33:27]} {[%emt 00:00:09]} 9. Ng3
{[%clk 01:28:11]} {[%emt 00:00:09]} h5 {[%clk 01:33:49]} {[%emt 00:00:09]} 10.
Be2 {[%clk 01:28:32]} {[%emt 00:00:09]} h4 {[%clk 01:34:13]} {[%emt 00:00:06]}
11. Nf1 {[%clk 01:28:56]} {[%emt 00:00:05]} e6 {[%clk 01:34:31]} {[%emt
00:00:12]} 12. Bg5 {[%clk 01:29:21]} {[%emt 00:00:05]} exd5 {[%clk 01:34:54]}
{[%emt 00:00:08]} 13. Nxd5 {[%clk 01:29:37]} {[%emt 00:00:13]} Be6 {[%clk
01:34:43]} {[%emt 00:00:41]} 14. Nfe3 {[%clk 01:09:50]} {[%emt 00:20:16]} Nxd5
{[%clk 01:32:20]} {[%emt 00:02:53]} 15. Bxd8 {[%clk 01:08:34]} {[%emt
00:01:45]} Nxe3 {[%clk 01:32:45]} {[%emt 00:00:05]} 16. Qc1 {[%clk 00:56:37]}
{[%emt 00:12:27]} Bh6 {[%clk 01:31:13]} {[%emt 00:02:03]} 17. Be7 {[%clk
00:53:31]} {[%emt 00:03:34]} Nxg2+ {[%clk 01:25:51]} {[%emt 00:05:53]} 18. Kf2
{[%clk 00:50:26]} {[%emt 00:03:35]} Bxc1 {[%clk 01:24:32]} {[%emt 00:01:50]} 19.
Raxc1 {[%clk 00:31:41]} {[%emt 00:19:15]} Nf4 {[%clk 01:23:10]} {[%emt
00:01:51]} 20. Bxf8 {[%clk 00:29:54]} {[%emt 00:02:17]} Nfd3+ {[%clk 01:20:10]}
{[%emt 00:03:31]} 21. Bxd3 {[%clk 00:27:35]} {[%emt 00:02:49]} Nxd3+ {[%clk
01:20:33]} {[%emt 00:00:07]} 22. Ke3 {[%clk 00:27:59]} {[%emt 00:00:06]} Nxc1
{[%clk 01:20:57]} {[%emt 00:00:06]} 23. Bxd6 {[%clk 00:25:52]} {[%emt
00:02:36]} Nxa2 {[%clk 01:21:17]} {[%emt 00:00:11]} 24. Bxc5 {[%clk 00:25:48]}
{[%emt 00:00:34]} Rc8 {[%clk 01:13:37]} {[%emt 00:08:11]} 25. Bxa7 {[%clk
00:23:59]} {[%emt 00:02:18]} Rxc4 {[%clk 01:13:54]} {[%emt 00:00:13]} 26. Rd1
{[%clk 00:24:03]} {[%emt 00:00:26]} Nb4 {[%clk 01:13:17]} {[%emt 00:01:07]} 27.
Kf4 {[%clk 00:19:53]} {[%emt 00:04:39]} Nc6 {[%clk 01:12:31]} {[%emt 00:01:17]}
28. Bf2 {[%clk 00:20:06]} {[%emt 00:00:17]} f6 {[%clk 01:12:24]} {[%emt
00:00:38]} 0-1

[Event "Schack-SM 2022: Mastarklassen"]
[Site "Fyrishov, Idrottsgatan 2, Uppsala, Sweden"]
[Date "2022.07.09"]
[Round "8.8"]
[White "Pettersson, Tobias"]
[Black "Strom-Engdahl, Alexander"]
[Result "0-1"]
[TimeControl "90 minutes for 40 moves + 30 minutes for the rest of the game + 30 seconds per move from move one."]
[WhiteFideId "1705962"]
[BlackFideId "1741586"]
[WhiteElo "2027"]
[BlackElo "2077"]

1. Nf3 {[%clk 01:30:56]} {[%emt 00:00:02]} Nf6 {[%clk 01:30:37]} {[%emt
00:00:25]} 2. c4 {[%clk 01:30:54]} {[%emt 00:00:32]} e6 {[%clk 01:30:26]}
{[%emt 00:00:41]} 3. g3 {[%clk 01:31:04]} {[%emt 00:00:20]} d5 {[%clk
01:29:05]} {[%emt 00:01:52]} 4. b3 {[%clk 01:31:19]} {[%emt 00:00:15]} Be7
{[%clk 01:28:09]} {[%emt 00:01:26]} 5. Bb2 {[%clk 01:31:21]} {[%emt 00:00:27]}
O-O {[%clk 01:28:25]} {[%emt 00:00:15]} 6. Bg2 {[%clk 01:31:35]} {[%emt
00:00:15]} b6 {[%clk 01:26:31]} {[%emt 00:02:25]} 7. O-O {[%clk 01:30:38]}
{[%emt 00:01:26]} Bb7 {[%clk 01:26:46]} {[%emt 00:00:16]} 8. e3 {[%clk
01:28:54]} {[%emt 00:02:13]} Nbd7 {[%clk 01:23:45]} {[%emt 00:03:31]} 9. Qe2
{[%clk 01:28:18]} {[%emt 00:01:06]} a5 {[%clk 01:20:45]} {[%emt 00:03:31]} 10.
Nc3 {[%clk 01:24:44]} {[%emt 00:04:03]} Nc5 {[%clk 01:16:32]} {[%emt 00:04:44]}
11. Rfd1 {[%clk 01:23:56]} {[%emt 00:01:16]} dxc4 {[%clk 01:10:28]} {[%emt
00:06:36]} 12. Ne5 {[%clk 01:22:11]} {[%emt 00:02:14]} Bxg2 {[%clk 01:08:02]}
{[%emt 00:02:56]} 13. Kxg2 {[%clk 01:22:31]} {[%emt 00:00:08]} cxb3 {[%clk
01:02:38]} {[%emt 00:05:55]} 14. Nc6 {[%clk 01:16:51]} {[%emt 00:06:09]} Qd7
{[%clk 00:57:50]} {[%emt 00:05:19]} 15. Nxe7+ {[%clk 01:15:42]} {[%emt
00:01:38]} Qxe7 {[%clk 00:56:02]} {[%emt 00:02:19]} 16. Ba3 {[%clk 01:14:06]}
{[%emt 00:02:05]} b2 {[%clk 00:55:41]} {[%emt 00:00:52]} 17. Rab1 {[%clk
01:08:06]} {[%emt 00:06:29]} Qd7 {[%clk 00:51:13]} {[%emt 00:04:59]} 18. d4
{[%clk 01:02:53]} {[%emt 00:05:43]} Nce4 {[%clk 00:51:24]} {[%emt 00:00:19]} 19.
Nxe4 {[%clk 01:02:18]} {[%emt 00:01:04]} Nxe4 {[%clk 00:51:46]} {[%emt
00:00:09]} 20. Qc2 {[%clk 01:01:27]} {[%emt 00:01:20]} Nd6 {[%clk 00:51:01]}
{[%emt 00:01:16]} 21. Rxb2 {[%clk 01:00:44]} {[%emt 00:01:13]} Rfd8 {[%clk
00:47:27]} {[%emt 00:04:04]} 22. Rc1 {[%clk 00:56:33]} {[%emt 00:04:40]} Nb5
{[%clk 00:39:31]} {[%emt 00:08:28]} 23. Qa4 {[%clk 00:55:54]} {[%emt 00:01:08]}
Nxa3 {[%clk 00:36:48]} {[%emt 00:03:14]} 24. Qxd7 {[%clk 00:51:10]} {[%emt
00:05:13]} Rxd7 {[%clk 00:36:59]} {[%emt 00:00:21]} 25. Rc3 {[%clk 00:51:31]}
{[%emt 00:00:08]} Re8 {[%clk 00:30:25]} {[%emt 00:07:04]} 26. Rxa3 {[%clk
00:51:25]} {[%emt 00:00:35]} e5 {[%clk 00:30:35]} {[%emt 00:00:21]} 27. dxe5
{[%clk 00:50:23]} {[%emt 00:01:32]} Rxe5 {[%clk 00:30:50]} {[%emt 00:00:14]} 28.
Rc3 {[%clk 00:48:56]} {[%emt 00:01:57]} Kf8 {[%clk 00:30:10]} {[%emt 00:01:12]}
29. Rbc2 {[%clk 00:49:15]} {[%emt 00:00:10]} c5 {[%clk 00:30:05]} {[%emt
00:00:35]} 30. Rb2 {[%clk 00:48:54]} {[%emt 00:00:50]} Re6 {[%clk 00:30:01]}
{[%emt 00:00:34]} 31. Rc4 {[%clk 00:48:40]} {[%emt 00:00:44]} Ke7 {[%clk
00:28:15]} {[%emt 00:02:16]} 32. h4 {[%clk 00:48:58]} {[%emt 00:00:12]} Kd8
{[%clk 00:27:24]} {[%emt 00:01:22]} 33. a4 {[%clk 00:44:48]} {[%emt 00:04:40]}
Kc7 {[%clk 00:27:19]} {[%emt 00:00:36]} 34. Rf4 {[%clk 00:44:21]} {[%emt
00:00:55]} Kc6 {[%clk 00:24:34]} {[%emt 00:03:17]} 35. Rc2 {[%clk 00:43:58]}
{[%emt 00:00:52]} Rde7 {[%clk 00:23:14]} {[%emt 00:01:51]} 36. Rcc4 {[%clk
00:42:29]} {[%emt 00:01:58]} b5 {[%clk 00:22:13]} {[%emt 00:01:32]} 37. axb5+
{[%clk 00:42:31]} {[%emt 00:00:28]} Kxb5 {[%clk 00:22:37]} {[%emt 00:00:07]} 38.
Rc1 {[%clk 00:41:54]} {[%emt 00:01:07]} Re4 {[%clk 00:22:31]} {[%emt 00:00:36]}
39. Rf5 {[%clk 00:40:03]} {[%emt 00:02:21]} Rc4 {[%clk 00:19:40]} {[%emt
00:03:21]} 40. Rd1 {[%clk 00:38:41]} {[%emt 00:01:50]} a4 {[%clk 00:19:34]}
{[%emt 00:00:37]} 41. Rd8 {[%clk 00:23:09]} {[%emt 00:16:01]} a3 {[%clk
00:17:52]} {[%emt 00:02:13]} 42. Rb8+ {[%clk 00:22:49]} {[%emt 00:00:47]} Ka4
{[%clk 00:18:10]} {[%emt 00:00:12]} 43. Ra8+ {[%clk 00:22:49]} {[%emt
00:00:31]} Kb3 {[%clk 00:18:27]} {[%emt 00:00:15]} 44. Rd5 {[%clk 00:19:38]}
{[%emt 00:03:41]} Rc3 {[%clk 00:15:35]} {[%emt 00:03:22]} 45. Rd6 {[%clk
00:18:44]} {[%emt 00:01:24]} Rb7 {[%clk 00:14:56]} {[%emt 00:01:09]} 46. Rda6
{[%clk 00:18:02]} {[%emt 00:01:11]} Kb2 {[%clk 00:15:18]} {[%emt 00:00:09]} 47.
h5 {[%clk 00:18:14]} {[%emt 00:00:17]} c4 {[%clk 00:14:35]} {[%emt 00:01:14]}
48. h6 {[%clk 00:18:25]} {[%emt 00:00:19]} gxh6 {[%clk 00:14:28]} {[%emt
00:00:37]} 49. Kf3 {[%clk 00:17:57]} {[%emt 00:00:57]} Rcb3 {[%clk 00:14:41]}
{[%emt 00:00:18]} 50. Rc6 {[%clk 00:16:43]} {[%emt 00:01:44]} c3 {[%clk
00:14:55]} {[%emt 00:00:16]} 51. Ke2 {[%clk 00:16:30]} {[%emt 00:00:41]} Rd7
{[%clk 00:14:10]} {[%emt 00:01:16]} 52. Ra5 {[%clk 00:15:54]} {[%emt 00:01:07]}
Rd2 {[%clk 00:14:16]} {[%emt 00:00:24]} 53. Ke1 {[%clk 00:16:11]} {[%emt
00:00:12]} a2 {[%clk 00:14:05]} {[%emt 00:00:42]} 54. Rca6 {[%clk 00:12:49]}
{[%emt 00:03:52]} Kb1 {[%clk 00:14:22]} {[%emt 00:00:13]} 0-1